[Event "11th Arad Open 2018"]
[Site "Arad"]
[Date "2018.08.06"]
[Round "3"]
[White "Cerovic, Danilo"]
[Black "Creanga, Robert-Ionut"]
[Result "1-0"]
[ECO "B31"]
[WhiteElo "2320"]
[BlackElo "2069"]
[Annotator "NA"]
[PlyCount "65"]
[EventDate "2018.08.05"]
[EventType "swiss"]
[EventCountry "ROU"]
[SourceTitle "playchess.com"]
[Source "ChessBase"]
[SourceQuality "1"]
[TimeControl "40/5400+30:1800+30"]

1. Nf3 {[%emt 0:00:00]} c5 {[%emt 0:00:00]} 2. e4 {[%emt 0:00:00]} Nc6 {[%emt 0:00:00]} 3. Bb5 {[%emt 0:00:05]} g6 {[%emt 0:00:00]} 4. Bxc6 {[%emt 0:00:34]} dxc6 {[%emt 0:00:00]} 5. d3 {[%emt 0:00:27]} Bg7 {[%emt 0:00:42]} 6. h3 {[%emt 0:00:14]} Nf6 {[%emt 0:00:25]} 7. Nc3 {[%emt 0:00:31]} O-O {[%emt 0:00:26]} 8. Be3 {[%emt 0:00:53]} b6 {[%emt 0:01:15]} 9. Qd2 {[%emt 0:00:38]} e5 {[%emt 0:00:15]} 10. Bh6 {[%emt 0:03:11]} Qd6 {[%emt 0:01:55]} 11. g4 {[%emt 0:09:18]} Be6 {[%emt 0:03:44]} 12. Ne2 {[%emt 0:06:47]} a5 {[%emt 0:09:23]} 13. Ng3 {[%emt 0:06:30]} a4 {[%emt 0:07:21]} 14. Bxg7 {[%emt 0:13:13]} Kxg7 {[%emt 0:00:13]} 15. Qg5 {[%emt 0:00:20]} Nd7 {[%emt 0:02:58]} 16. Nh5+ Kh8 {[%emt 0:00:38]} 17. Nf6 {[%emt 0:12:32]} Kg7 {[%emt 0:04:01]} 18. Nxd7 {[%emt 0:02:32]} Qxd7 {[%emt 0:00:07]} 19. Qxe5+ {[%emt 0:00:17]} f6 {[%emt 0:00:06]} 20. Qc3 {[%emt 0:00:57]} Kg8 {[%emt 0:02:00]} 21. a3 {[%emt 0:02:49]} Qe7 {[%emt 0:00:41]} 22. O-O-O {[%emt 0:03:51]} Bd7 {[%emt 0:02:34]} 23. Rhe1 {[%emt 0:00:53]} b5 {[%emt 0:00:20]} 24. d4 {[%emt 0:00:27]} cxd4 {[%emt 0:00:10]} 25. Qxd4 {[%emt 0:04:10]} Rfd8 {[%emt 0:02:10]} 26. e5 {[%emt 0:04:48]} f5 {[%emt 0:02:50]} 27. g5 {[%emt 0:05:40]} Be6 {[%emt 0:01:26]} 28. Qb4 {[%emt 0:01:06]} Qa7 {[%emt 0:01:10]} 29. Rd2 {[%emt 0:05:15]} Bd5 {[%emt 0:05:12]} 30. Ng1 {[%emt 0:01:55]} Re8 {[%emt 0:01:34]} 31. h4 {[%emt 0:01:25]} Qc7 {[%emt 0:00:14]} 32. Qc3 {[%emt 0:00:47]} f4 {[%emt 0:01:20]} 33. Rxd5 {[%emt 0:01:08]} 1-0

[Event "11th Arad Open 2018"]
[Site "Arad"]
[Date "2018.08.06"]
[Round "3"]
[White "Banzea, Alexandru-Bogdan"]
[Black "Deepan Chakkravarthy J"]
[Result "0-1"]
[ECO "B51"]
[WhiteElo "2313"]
[BlackElo "2530"]
[Annotator "ChessBase"]
[PlyCount "72"]
[EventDate "2018.08.05"]
[EventType "swiss"]
[EventCountry "ROU"]
[SourceTitle "playchess.com"]
[Source "ChessBase"]
[SourceQuality "1"]
[TimeControl "40/5400+30:1800+30"]

1. e4 {[%emt 0:02:38]} c5 {[%emt 0:00:00]} 2. Nf3 {[%emt 0:00:09]} d6 {[%emt 0:00:00]} 3. Bb5+ {[%emt 0:00:23]} Nd7 {[%emt 0:00:00]} 4. O-O {[%emt 0:00:13]} a6 {[%emt 0:00:00]} 5. Bd3 {[%emt 0:00:05]} Ngf6 {[%emt 0:06:51]} 6. Re1 {[%emt 0:00:51]} g6 {[%emt 0:00:10]} 7. c3 {[%emt 0:00:35]} Bg7 {[%emt 0:00:42]} 8. Bc2 {[%emt 0:00:56]} Ne5 {[%emt 0:06:08]} 9. Nxe5 {[%emt 0:02:01]} dxe5 {[%emt 0:00:04]} 10. a4 {[%emt 0:07:07]} b6 {[%emt 0:00:08]} 11. Na3 {[%emt 0:01:42]} Qc7 {[%emt 0:00:11]} 12. Qe2 {[%emt 0:06:04]} O-O {[%emt 0:00:30]} 13. Nc4 {[%emt 0:00:46]} Be6 {[%emt 0:03:04]} 14. d3 {[%emt 0:03:41]} b5 {[%emt 0:02:22]} 15. axb5 {[%emt 0:00:47]} axb5 {[%emt 0:00:03]} 16. Rxa8 {[%emt 0:00:17]} Rxa8 {[%emt 0:00:04]} 17. Na3 {[%emt 0:01:41]} b4 {[%emt 0:09:38]} 18. Nc4 {[%emt 0:03:20]} bxc3 {[%emt 0:22:59]} 19. bxc3 {[%emt 0:00:30]} h5 {[%emt 0:00:34]} 20. h3 {[%emt 0:05:12]} Bxc4 {[%emt 0:02:29]} 21. dxc4 {[%emt 0:00:06]} Kh7 {[%emt 0:00:03]} 22. g4 {[%emt 0:10:59]} Ra2 {[%emt 0:00:24]} 23. f3 {[%emt 0:01:30]} hxg4 {[%emt 0:04:12]} 24. hxg4 {[%emt 0:00:08]} Nd7 {[%emt 0:00:04]} 25. Qd3 {[%emt 0:06:18]} Nf8 {[%emt 0:00:25]} 26. Rd1 {[%emt 0:01:33]} Ne6 {[%emt 0:00:32]} 27. Bb3 {[%emt 0:08:09]} Ra1 {[%emt 0:02:15]} 28. Qc2 {[%emt 0:08:09]} Bf6 {[%emt 0:04:41]} 29. Be3 {[%emt 0:01:47]} Rxd1+ {[%emt 0:01:11]} 30. Qxd1 {[%emt 0:00:04]} Bg5 {[%emt 0:00:03]} 31. Bf2 {[%emt 0:02:36]} Qa5 {[%emt 0:01:10]} 32. Be1 {[%emt 0:02:14]} Kg7 {[%emt 0:05:12]} 33. Kh2 {[%emt 0:00:35]} Qa8 {[%emt 0:02:42]} 34. Kg2 {[%emt 0:03:34]} Qh8 {[%emt 0:04:29]} 35. Bg3 {[%emt 0:00:36]} Bf4 {[%emt 0:00:05]} 36. Bc2 {[%emt 0:01:08]} Ng5 {[%emt 0:03:37]} 0-1

[Event "11th Arad Open 2018"]
[Site "Arad"]
[Date "2018.08.06"]
[Round "3"]
[White "Vrencian, Lehel"]
[Black "Stany, G A"]
[Result "0-1"]
[ECO "A48"]
[WhiteElo "2293"]
[BlackElo "2494"]
[Annotator "ChessBase"]
[PlyCount "58"]
[EventDate "2018.08.05"]
[EventType "swiss"]
[EventCountry "ROU"]
[SourceTitle "playchess.com"]
[Source "ChessBase"]
[SourceQuality "1"]
[TimeControl "40/5400+30:1800+30"]

1. d4 {[%emt 0:01:54]} Nf6 {[%emt 0:03:48]} 2. Nf3 {[%emt 0:02:53]} g6 {[%emt 0:00:06]} 3. c4 {[%emt 0:01:47]} Bg7 {[%emt 0:00:06]} 4. g3 {[%emt 0:00:06]} c6 {[%emt 0:00:03]} 5. Bg2 {[%emt 0:00:21]} d5 {[%emt 0:00:06]} 6. Qb3 {[%emt 0:01:39]} O-O {[%emt 0:00:38]} 7. O-O {[%emt 0:00:06]} a5 {[%emt 0:05:32]} 8. cxd5 {[%emt 0:00:36]} a4 {[%emt 0:02:36]} 9. Qd1 {[%emt 0:03:34]} Nxd5 {[%emt 0:07:40]} 10. e4 {[%emt 0:04:30]} Nb6 {[%emt 0:04:04]} 11. h3 {[%emt 0:06:53]} c5 {[%emt 0:01:37]} 12. dxc5 {[%emt 0:12:05]} Qxd1 {[%emt 0:08:05]} 13. Rxd1 {[%emt 0:01:55]} Nc4 {[%emt 0:00:10]} 14. Nbd2 {[%emt 0:02:08]} Nxb2 {[%emt 0:04:27]} 15. Bxb2 {[%emt 0:00:06]} Bxb2 {[%emt 0:00:03]} 16. Rab1 {[%emt 0:00:06]} Ba3 {[%emt 0:00:03]} 17. Nc4 {[%emt 0:14:20]} Bxc5 {[%emt 0:00:36]} 18. Rb5 {[%emt 0:05:38]} Na6 {[%emt 0:03:37]} 19. Bf1 {[%emt 0:08:10]} Rb8 {[%emt 0:07:33]} 20. Nce5 {[%emt 0:12:19]} b6 {[%emt 0:11:21]} 21. Nd7 {[%emt 0:07:46]} Bxd7 {[%emt 0:02:05]} 22. Rxd7 {[%emt 0:00:03]} Nb4 {[%emt 0:04:07]} 23. Bc4 {[%emt 0:01:05]} Rbd8 {[%emt 0:04:22]} 24. Ne5 {[%emt 0:02:52]} Kg7 {[%emt 0:05:07]} 25. Rxd8 {[%emt 0:07:54]} Rxd8 {[%emt 0:00:05]} 26. Nxf7 {[%emt 0:00:10]} Rd4 {[%emt 0:02:30]} 27. Ne5 {[%emt 0:02:02]} Rxe4 {[%emt 0:00:12]} 28. a3 {[%emt 0:00:23]} Nc2 {[%emt 0:01:27]} 29. Rb2 {[%emt 0:00:37]} Nxa3 {[%emt 0:00:12]} 0-1

[Event "11th Arad Open 2018"]
[Site "Arad"]
[Date "2018.08.06"]
[Round "3"]
[White "Velickovic, Sasa"]
[Black "Costachi, Mihnea"]
[Result "0-1"]
[ECO "C77"]
[WhiteElo "2290"]
[BlackElo "2453"]
[Annotator "ChessBase"]
[PlyCount "72"]
[EventDate "2018.08.05"]
[EventType "swiss"]
[EventCountry "ROU"]
[SourceTitle "playchess.com"]
[Source "ChessBase"]
[SourceQuality "1"]
[TimeControl "40/5400+30:1800+30"]

1. e4 {[%emt 0:00:00]} e5 {[%emt 0:00:52]} 2. Nf3 {[%emt 0:00:00]} Nc6 {[%emt 0:00:06]} 3. Bb5 {[%emt 0:00:00]} a6 {[%emt 0:00:03]} 4. Ba4 {[%emt 0:00:01]} Nf6 {[%emt 0:00:59]} 5. d3 {[%emt 0:01:17]} Bc5 {[%emt 0:01:34]} 6. O-O {[%emt 0:02:22]} d6 {[%emt 0:00:35]} 7. c3 {[%emt 0:00:29]} Ba7 {[%emt 0:01:30]} 8. a3 {[%emt 0:11:30]} h6 {[%emt 0:02:42]} 9. Re1 {[%emt 0:09:40]} O-O {[%emt 0:02:00]} 10. h3 {[%emt 0:21:08]} Ne7 {[%emt 0:03:03]} 11. Nbd2 {[%emt 0:05:13]} Ng6 {[%emt 0:00:46]} 12. Nf1 {[%emt 0:00:07]} c6 {[%emt 0:01:26]} 13. Ng3 {[%emt 0:06:17]} d5 {[%emt 0:01:44]} 14. Bb3 {[%emt 0:15:04]} Be6 {[%emt 0:03:13]} 15. exd5 {[%emt 0:05:03]} Bxd5 {[%emt 0:07:59]} 16. Bxd5 {[%emt 0:01:21]} Qxd5 {[%emt 0:00:31]} 17. c4 {[%emt 0:00:30]} Qd6 {[%emt 0:06:14]} 18. Qb3 {[%emt 0:01:36]} Nd7 {[%emt 0:06:30]} 19. Ne4 {[%emt 0:09:10]} Qc7 {[%emt 0:00:43]} 20. Qc2 {[%emt 0:00:27]} f5 {[%emt 0:00:27]} 21. Nc3 {[%emt 0:00:04]} Rae8 {[%emt 0:00:43]} 22. Be3 {[%emt 0:00:24]} Bb8 {[%emt 0:00:33]} 23. Kf1 {[%emt 0:01:42]} Rf7 {[%emt 0:07:08]} 24. Rad1 {[%emt 0:01:12]} Rfe7 {[%emt 0:00:22]} 25. b4 {[%emt 0:02:25]} Kh8 {[%emt 0:07:55]} 26. a4 {[%emt 0:00:20]} Nf6 {[%emt 0:00:34]} 27. a5 {[%emt 0:01:29]} e4 {[%emt 0:01:14]} 28. Bb6 {[%emt 0:00:49]} Qc8 {[%emt 0:13:55]} 29. dxe4 {[%emt 0:03:23]} fxe4 {[%emt 0:00:17]} 30. Nd2 {[%emt 0:00:07]} Qf5 {[%emt 0:01:39]} 31. f3 {[%emt 0:00:50]} Bg3 {[%emt 0:03:43]} 32. Rxe4 {[%emt 0:00:53]} Nf4 {[%emt 0:05:07]} 33. Qb1 {[%emt 0:00:36]} Nxe4 {[%emt 0:01:41]} 34. Ndxe4 {[%emt 0:00:46]} Bh4 {[%emt 0:00:27]} 35. Bc5 {[%emt 0:00:33]} Re6 {[%emt 0:01:04]} 36. Qc2 {[%emt 0:00:33]} Nxh3 {[%emt 0:03:16]} 0-1

[Event "11th Arad Open 2018"]
[Site "Arad"]
[Date "2018.08.06"]
[Round "3"]
[White "Patrascu, Catalin-Lucian"]
[Black "Cioara, Andrei-Nestor"]
[Result "1/2-1/2"]
[ECO "C00"]
[WhiteElo "2286"]
[BlackElo "2435"]
[Annotator "NA"]
[PlyCount "73"]
[EventDate "2018.08.05"]
[EventType "swiss"]
[EventCountry "ROU"]
[SourceTitle "playchess.com"]
[Source "ChessBase"]
[SourceQuality "1"]
[TimeControl "40/5400+30:1800+30"]

1. e4 {[%emt 0:00:00]} e6 {[%emt 0:06:45]} 2. d4 {[%emt 0:01:13]} d5 {[%emt 0:04:04]} 3. Bd3 {[%emt 0:00:40]} dxe4 {[%emt 0:03:34]} 4. Bxe4 {[%emt 0:00:04]} Nf6 {[%emt 0:00:04]} 5. Bf3 {[%emt 0:00:04]} c5 {[%emt 0:00:12]} 6. Ne2 {[%emt 0:00:24]} Nc6 {[%emt 0:00:21]} 7. Be3 {[%emt 0:02:16]} e5 {[%emt 0:02:50]} 8. Bxc6+ {[%emt 0:09:28]} bxc6 {[%emt 0:00:06]} 9. dxe5 {[%emt 0:00:12]} Qxd1+ {[%emt 0:00:05]} 10. Kxd1 {[%emt 0:00:02]} Ng4 {[%emt 0:00:12]} 11. Nd2 {[%emt 0:06:03]} Be7 {[%emt 0:13:13]} 12. Nf3 {[%emt 0:08:21]} Nxe3+ {[%emt 0:19:43]} 13. fxe3 {[%emt 0:00:04]} Bg4 {[%emt 0:00:06]} 14. Nc3 {[%emt 0:09:11]} O-O-O+ {[%emt 0:07:59]} 15. Ke2 {[%emt 0:02:37]} Rhe8 {[%emt 0:00:05]} 16. h3 {[%emt 0:07:27]} Bh5 {[%emt 0:00:15]} 17. Rad1 {[%emt 0:03:37]} Bf8 {[%emt 0:01:00]} 18. Rxd8+ {[%emt 0:05:11]} Kxd8 {[%emt 0:00:02]} 19. Rf1 {[%emt 0:07:44]} Be7 {[%emt 0:11:15]} 20. g4 {[%emt 0:12:16]} Bg6 {[%emt 0:00:01]} 21. e6 {[%emt 0:07:17]} Bf6 {[%emt 0:01:37]} 22. Rd1+ {[%emt 0:01:44]} Kc8 {[%emt 0:00:37]} 23. Rd7 {[%emt 0:08:59]} Rxe6 {[%emt 0:01:02]} 24. Rxa7 {[%emt 0:00:04]} h5 {[%emt 0:21:25]} 25. Kf2 {[%emt 0:03:21]} hxg4 {[%emt 0:00:05]} 26. hxg4 {[%emt 0:00:01]} Kb8 {[%emt 0:02:15]} 27. Rd7 {[%emt 0:01:10]} Kc8 {[%emt 0:00:11]} 28. Ra7 {[%emt 0:00:19]} Kb8 {[%emt 0:00:03]} 29. Rd7 {[%emt 0:00:40]} Kc8 {[%emt 0:00:04]} 30. Ra7 Kb8 31. Ra5 Be7 32. Na4 Re4 33. Nxc5 Rc4 34. Na6+ Kb7 35. Nc5+ Kb8 36. Nd7+ Kc7 37. c3 1/2-1/2

[Event "11th Arad Open 2018"]
[Site "Arad"]
[Date "2018.08.06"]
[Round "3"]
[White "Gilea, Lucian"]
[Black "Filip, Lucian-Ioan"]
[Result "1/2-1/2"]
[ECO "A45"]
[WhiteElo "2279"]
[BlackElo "2426"]
[Annotator "NA"]
[PlyCount "38"]
[EventDate "2018.08.05"]
[EventType "swiss"]
[EventCountry "ROU"]
[SourceTitle "playchess.com"]
[Source "ChessBase"]
[SourceQuality "1"]
[TimeControl "40/5400+30:1800+30"]

1. d4 {[%emt 0:00:00]} Nf6 {[%emt 0:07:45]} 2. g3 {[%emt 0:00:00]} d5 {[%emt 0:00:51]} 3. c4 {[%emt 0:00:04]} dxc4 {[%emt 0:04:37]} 4. Bg2 {[%emt 0:00:24]} e5 {[%emt 0:11:15]} 5. d5 {[%emt 0:02:10]} c6 {[%emt 0:04:58]} 6. Nc3 {[%emt 0:04:46]} cxd5 {[%emt 0:19:01]} 7. Nxd5 {[%emt 0:00:12]} Nxd5 {[%emt 0:00:11]} 8. Qxd5 {[%emt 0:04:07]} Bb4+ {[%emt 0:02:37]} 9. Bd2 {[%emt 0:00:16]} Bxd2+ {[%emt 0:02:04]} 10. Qxd2 {[%emt 0:00:07]} Qxd2+ {[%emt 0:08:03]} 11. Kxd2 {[%emt 0:00:02]} Nd7 {[%emt 0:01:13]} 12. Nf3 {[%emt 0:02:27]} f6 {[%emt 0:05:34]} 13. Rhc1 {[%emt 0:00:11]} Nb6 {[%emt 0:00:34]} 14. Ke1 $11 {[%emt 0:01:24]} Be6 {[%emt 0:01:49]} 15. Nd2 {[%emt 0:00:07]} Rb8 {[%emt 0:02:46]} 16. Ne4 {[%emt 0:00:24]} Bd5 {[%emt 0:16:02]} 17. Nd6+ {[%emt 0:00:38]} Kd7 {[%emt 0:00:23]} 18. Bxd5 {[%emt 0:00:25]} Kxd6 {[%emt 0:00:05]} 19. Bxc4 {[%emt 0:00:07]} Nxc4 {[%emt 0:00:07]} 1/2-1/2

[Event "11th Arad Open 2018"]
[Site "Arad"]
[Date "2018.08.06"]
[Round "3"]
[White "Cvetkovic, Srdjan"]
[Black "Magold, Victor"]
[Result "1-0"]
[ECO "B36"]
[WhiteElo "2252"]
[BlackElo "2032"]
[Annotator "NA"]
[PlyCount "105"]
[EventDate "2018.08.05"]
[EventType "swiss"]
[EventCountry "ROU"]
[SourceTitle "playchess.com"]
[Source "ChessBase"]
[SourceQuality "1"]
[TimeControl "40/5400+30:1800+30"]

1. c4 {[%emt 0:00:00]} Nf6 {[%emt 0:00:00]} 2. Nc3 {[%emt 0:01:01]} c5 {[%emt 0:01:41]} 3. Nf3 {[%emt 0:02:08]} Nc6 {[%emt 0:00:17]} 4. d4 {[%emt 0:05:38]} cxd4 {[%emt 0:00:20]} 5. Nxd4 {[%emt 0:00:06]} g6 {[%emt 0:00:08]} 6. e4 {[%emt 0:03:37]} Nxd4 {[%emt 0:01:17]} 7. Qxd4 {[%emt 0:00:26]} d6 {[%emt 0:00:14]} 8. c5 {[%emt 0:17:17]} dxc5 {[%emt 0:00:59]} 9. Bb5+ {[%emt 0:02:14]} Bd7 {[%emt 0:00:52]} 10. Qxc5 {[%emt 0:02:16]} Bg7 {[%emt 0:03:35]} 11. O-O {[%emt 0:05:36]} Bxb5 {[%emt 0:05:59]} 12. Qxb5+ {[%emt 0:03:58]} Qd7 {[%emt 0:00:06]} 13. Qxd7+ {[%emt 0:04:54]} Nxd7 {[%emt 0:00:19]} 14. Nd5 {[%emt 0:03:32]} Rc8 {[%emt 0:02:11]} 15. Bf4 {[%emt 0:08:21]} e6 {[%emt 0:01:56]} 16. Nc7+ {[%emt 0:05:11]} Ke7 {[%emt 0:00:25]} 17. Nb5 {[%emt 0:01:39]} Be5 {[%emt 0:09:11]} 18. Bxe5 {[%emt 0:06:56]} Nxe5 {[%emt 0:00:18]} 19. f4 {[%emt 0:00:10]} Rc5 {[%emt 0:02:41]} 20. fxe5 {[%emt 0:02:27]} Rxb5 {[%emt 0:00:03]} 21. Rac1 {[%emt 0:00:05]} Rxe5 {[%emt 0:01:10]} 22. Rc7+ {[%emt 0:00:06]} Kd6 {[%emt 0:00:14]} 23. Rxb7 {[%emt 0:01:18]} Rxe4 {[%emt 0:01:19]} 24. Rfxf7 {[%emt 0:10:50]} Rc8 {[%emt 0:02:19]} 25. Rfd7+ {[%emt 0:00:40]} Ke5 {[%emt 0:00:14]} 26. Rbc7 {[%emt 0:00:44]} Rf8 {[%emt 0:00:53]} 27. Rc5+ {[%emt 0:01:41]} Kf6 {[%emt 0:00:39]} 28. Rxh7 {[%emt 0:05:44]} Rd8 {[%emt 0:00:06]} 29. Rc2 {[%emt 0:00:43]} Rd1+ {[%emt 0:01:46]} 30. Kf2 {[%emt 0:00:01]} a5 {[%emt 0:01:56]} 31. Rh3 {[%emt 0:00:48]} Red4 {[%emt 0:03:18]} 32. Re3 {[%emt 0:01:33]} Rb4 {[%emt 0:06:49]} 33. b3 {[%emt 0:01:09]} Rd6 {[%emt 0:02:51]} 34. Ke2 {[%emt 0:01:42]} a4 {[%emt 0:00:20]} 35. Rc4 {[%emt 0:00:31]} Rd4 {[%emt 0:01:28]} 36. Rxb4 {[%emt 0:00:38]} Rxb4 {[%emt 0:00:05]} 37. Kd2 {[%emt 0:00:26]} axb3 {[%emt 0:00:08]} 38. axb3 {[%emt 0:00:05]} Rh4 {[%emt 0:02:19]} 39. h3 {[%emt 0:00:05]} Ke7 {[%emt 0:00:04]} 40. Rg3 {[%emt 0:00:00]} Kf7 {[%emt 0:00:00]} 41. Kc3 {[%emt 0:15:38]} Rh8 {[%emt 0:16:09]} 42. b4 {[%emt 0:00:23]} Rb8 {[%emt 0:01:28]} 43. Kc4 {[%emt 0:00:28]} Rc8+ {[%emt 0:00:08]} 44. Kd4 {[%emt 0:00:54]} Rd8+ {[%emt 0:00:14]} 45. Kc5 {[%emt 0:01:56]} Rc8+ {[%emt 0:00:14]} 46. Kd6 {[%emt 0:00:39]} Rd8+ {[%emt 0:00:20]} 47. Kc7 {[%emt 0:00:58]} Rd2 {[%emt 0:00:29]} 48. b5 {[%emt 0:01:00]} Rc2+ {[%emt 0:00:21]} 49. Kb7 {[%emt 0:00:11]} e5 {[%emt 0:00:10]} 50. b6 {[%emt 0:00:25]} e4 {[%emt 0:01:20]} 51. Re3 {[%emt 0:03:37]} Rxg2 {[%emt 0:01:38]} 52. Rxe4 {[%emt 0:00:08]} Rb2 {[%emt 0:00:13]} 53. Ra4 {[%emt 0:01:42]} 1-0

[Event "11th Arad Open 2018"]
[Site "Arad"]
[Date "2018.08.06"]
[Round "3"]
[White "Ciorgovean, Iustin"]
[Black "Secheres, Adrian-Simion"]
[Result "1/2-1/2"]
[ECO "D30"]
[WhiteElo "2245"]
[BlackElo "2407"]
[Annotator "NA"]
[PlyCount "40"]
[EventDate "2018.08.05"]
[EventType "swiss"]
[EventCountry "ROU"]
[SourceTitle "playchess.com"]
[Source "ChessBase"]
[SourceQuality "1"]
[TimeControl "40/5400+30:1800+30"]

1. d4 {[%emt 0:00:00]} d5 {[%emt 0:00:00]} 2. c4 {[%emt 0:00:00]} e6 {[%emt 0:00:03]} 3. Nf3 {[%emt 0:00:20]} a6 {[%emt 0:00:07]} 4. Bg5 {[%emt 0:00:32]} Be7 {[%emt 0:00:07]} 5. Bxe7 {[%emt 0:00:07]} Qxe7 {[%emt 0:00:05]} 6. Nbd2 {[%emt 0:08:49]} Nf6 {[%emt 0:00:14]} 7. e3 {[%emt 0:01:41]} O-O {[%emt 0:00:07]} 8. Rc1 {[%emt 0:05:25]} c6 {[%emt 0:00:10]} 9. Be2 {[%emt 0:06:17]} Nbd7 {[%emt 0:00:13]} 10. O-O {[%emt 0:00:46]} e5 {[%emt 0:00:41]} 11. dxe5 {[%emt 0:12:07]} Nxe5 {[%emt 0:01:29]} 12. cxd5 {[%emt 0:01:09]} Nxd5 {[%emt 0:00:07]} 13. Nxe5 {[%emt 0:01:57]} Qxe5 {[%emt 0:00:06]} 14. Nc4 {[%emt 0:00:05]} Qe7 {[%emt 0:01:17]} 15. Bf3 {[%emt 0:21:50]} Be6 {[%emt 0:03:44]} 16. Qe2 {[%emt 0:02:34]} Rad8 {[%emt 0:03:42]} 17. Rfd1 {[%emt 0:01:53]} Rd7 {[%emt 0:20:48]} 18. Ne5 {[%emt 0:06:40]} Rd6 {[%emt 0:00:50]} 19. Nc4 {[%emt 0:00:32]} Rd7 {[%emt 0:00:13]} 20. Ne5 {[%emt 0:00:56]} Rd6 {[%emt 0:00:31]} 1/2-1/2

[Event "11th Arad Open 2018"]
[Site "Arad"]
[Date "2018.08.06"]
[Round "3"]
[White "Calin, Alexandru"]
[Black "Albu, George"]
[Result "1-0"]
[ECO "B20"]
[WhiteElo "2215"]
[BlackElo "2016"]
[Annotator "NA"]
[PlyCount "73"]
[EventDate "2018.08.05"]
[EventType "swiss"]
[EventCountry "ROU"]
[SourceTitle "playchess.com"]
[Source "ChessBase"]
[SourceQuality "1"]
[TimeControl "40/5400+30:1800+30"]

1. e4 {[%emt 0:00:00]} c5 {[%emt 0:00:20]} 2. Be2 {[%emt 0:00:00]} a6 {[%emt 0:00:26]} 3. f4 {[%emt 0:00:00]} b5 {[%emt 0:00:08]} 4. Nf3 {[%emt 0:00:13]} Bb7 {[%emt 0:00:06]} 5. d3 {[%emt 0:00:07]} g6 {[%emt 0:00:25]} 6. Be3 {[%emt 0:02:00]} Bg7 {[%emt 0:00:46]} 7. c3 {[%emt 0:00:07]} Qc7 {[%emt 0:00:34]} 8. Nbd2 {[%emt 0:05:13]} Nf6 {[%emt 0:00:14]} 9. Nh4 {[%emt 0:17:42]} h6 {[%emt 0:08:56]} 10. O-O {[%emt 0:01:22]} d6 {[%emt 0:04:02]} 11. Qe1 {[%emt 0:10:22]} e6 {[%emt 0:12:58]} 12. Qf2 {[%emt 0:03:48]} Nbd7 {[%emt 0:01:59]} 13. a4 {[%emt 0:11:04]} d5 {[%emt 0:09:01]} 14. e5 {[%emt 0:01:57]} Ng8 {[%emt 0:00:08]} 15. axb5 {[%emt 0:02:47]} axb5 {[%emt 0:00:06]} 16. Nb3 {[%emt 0:02:30]} Bf8 {[%emt 0:18:10]} 17. Rxa8+ {[%emt 0:04:17]} Bxa8 {[%emt 0:00:04]} 18. d4 {[%emt 0:03:09]} c4 {[%emt 0:03:38]} 19. Nc5 {[%emt 0:02:05]} Nxc5 {[%emt 0:01:27]} 20. dxc5 {[%emt 0:00:04]} Ne7 {[%emt 0:07:00]} 21. g4 {[%emt 0:02:02]} Nc6 {[%emt 0:00:51]} 22. Bd4 {[%emt 0:01:49]} Bg7 {[%emt 0:04:16]} 23. b4 {[%emt 0:10:00]} Rg8 {[%emt 0:04:35]} 24. Nf3 {[%emt 0:04:32]} Bb7 {[%emt 0:01:25]} 25. Bd1 {[%emt 0:00:31]} Bc8 {[%emt 0:01:45]} 26. Bc2 {[%emt 0:01:04]} Bd7 {[%emt 0:04:43]} 27. Kh1 {[%emt 0:00:32]} Kd8 {[%emt 0:00:20]} 28. f5 {[%emt 0:06:52]} exf5 {[%emt 0:07:20]} 29. gxf5 {[%emt 0:00:12]} Nxe5 {[%emt 0:02:07]} 30. f6 {[%emt 0:01:13]} Bxf6 {[%emt 0:01:03]} 31. c6 {[%emt 0:00:12]} Bxc6 {[%emt 0:03:17]} 32. Bb6 {[%emt 0:01:30]} d4 {[%emt 0:00:17]} 33. Qxd4+ {[%emt 0:01:11]} Kc8 {[%emt 0:00:07]} 34. Bxc7 {[%emt 0:00:44]} Nxf3 {[%emt 0:00:25]} 35. Qxf6 {[%emt 0:00:35]} Nd4+ {[%emt 0:00:20]} 36. Kg1 {[%emt 0:00:08]} Ne6 {[%emt 0:01:34]} 37. Qxf7 {[%emt 0:00:17]} 1-0

[Event "11th Arad Open 2018"]
[Site "Arad"]
[Date "2018.08.06"]
[Round "3"]
[White "Stanca, Adrian"]
[Black "Georgescu, Cristian"]
[Result "0-1"]
[ECO "C45"]
[WhiteElo "2208"]
[BlackElo "2015"]
[Annotator "NA"]
[PlyCount "80"]
[EventDate "2018.08.05"]
[EventType "swiss"]
[EventCountry "ROU"]
[SourceTitle "playchess.com"]
[Source "ChessBase"]
[SourceQuality "1"]
[TimeControl "40/5400+30:1800+30"]

1. e4 {[%emt 0:00:00]} e5 {[%emt 0:00:00]} 2. Nf3 {[%emt 0:00:26]} Nc6 {[%emt 0:00:00]} 3. d4 {[%emt 0:00:21]} exd4 {[%emt 0:00:19]} 4. Nxd4 {[%emt 0:00:24]} Nf6 {[%emt 0:00:17]} 5. Nxc6 {[%emt 0:01:50]} bxc6 {[%emt 0:00:03]} 6. e5 {[%emt 0:01:38]} Qe7 {[%emt 0:00:48]} 7. Qe2 {[%emt 0:00:22]} Nd5 {[%emt 0:00:34]} 8. c4 {[%emt 0:00:41]} Ba6 {[%emt 0:00:51]} 9. Qe4 {[%emt 0:01:41]} Nf6 {[%emt 0:01:52]} 10. Qe2 {[%emt 0:01:12]} Nd5 {[%emt 0:00:22]} 11. Qe4 {[%emt 0:02:39]} Nf6 {[%emt 0:00:04]} 12. Qe2 {[%emt 0:00:12]} Nd5 {[%emt 0:00:08]} 13. b3 {[%emt 0:00:10]} O-O-O {[%emt 0:06:08]} 14. Bb2 {[%emt 0:02:09]} f6 {[%emt 0:01:47]} 15. Qe4 {[%emt 0:03:32]} Nb6 {[%emt 0:04:55]} 16. Nd2 {[%emt 0:19:47]} fxe5 {[%emt 0:03:24]} 17. O-O-O {[%emt 0:00:54]} Re8 {[%emt 0:02:12]} 18. Re1 {[%emt 0:02:48]} Qf7 {[%emt 0:01:53]} 19. c5 {[%emt 0:03:44]} Bxf1 {[%emt 0:00:37]} 20. cxb6 {[%emt 0:00:17]} Bb5 {[%emt 0:02:36]} 21. bxa7 {[%emt 0:12:58]} Kb7 {[%emt 0:01:02]} 22. Qe3 {[%emt 0:23:08]} Bb4 {[%emt 0:04:52]} 23. a3 {[%emt 0:02:30]} Ba5 {[%emt 0:12:55]} 24. a4 {[%emt 0:06:10]} Ba6 {[%emt 0:01:24]} 25. Qc5 {[%emt 0:01:23]} Bxd2+ {[%emt 0:05:53]} 26. Kxd2 {[%emt 0:00:05]} Qxb3 {[%emt 0:00:22]} 27. Bc3 {[%emt 0:04:29]} Qa2+ {[%emt 0:02:04]} 28. Ke3 {[%emt 0:00:21]} Qxa4 {[%emt 0:01:56]} 29. g3 {[%emt 0:04:08]} Bb5 {[%emt 0:07:35]} 30. Ra1 {[%emt 0:00:39]} Qc2 {[%emt 0:01:52]} 31. Kf3 {[%emt 0:02:07]} e4+ {[%emt 0:05:15]} 32. Kg2 {[%emt 0:00:47]} e3 {[%emt 0:01:22]} 33. Rhb1 {[%emt 0:00:11]} Qxf2+ {[%emt 0:06:39]} 34. Kh3 {[%emt 0:00:29]} Qe2 {[%emt 0:04:19]} 35. Ra5 {[%emt 0:01:23]} Ka8 {[%emt 0:05:07]} 36. Raxb5 {[%emt 0:01:46]} cxb5 {[%emt 0:00:24]} 37. Rxb5 {[%emt 0:00:08]} Qf1+ {[%emt 0:00:22]} 38. Kg4 {[%emt 0:00:30]} Re4+ {[%emt 0:05:54]} 39. Kg5 {[%emt 0:00:53]} h6+ {[%emt 0:00:57]} 40. Kg6 {[%emt 0:00:00]} Rg4+ {[%emt 0:00:00]} 0-1